Cogmind - Beta 15 @@@ ROGUE MODE // 2025.07.16 @ 17:34:18 Player: beans Result: Destroyed by S-10 Pest with Light Assault Rifle Performance ------------- Evolutions (2) 1000 Regions Visited (6) 1200 Robots Destroyed (152) 760 Value Destroyed (3813) 3813 Prototype IDs (27) 540 Alien Tech Used (0) 0 Bonus (1647) 1647 TOTAL SCORE: 8960 Bonus ------- High Alert Combat Kills 1347 Aligned with FarCom 300 Cogmind --------- Core Integrity 0/550 Matter 162/300 Energy 262/280 System Corruption 5% Temperature Cool (1) Movement Hovering (46) Location -8/Storage Parts ------- > --- POWER (2) -------- Heavy Ion Engine > --- PROPULSION (3) --- Aerolev Unit Aerolev Unit > --- UTILITY (3) ------ Improved Heat Sink Improved Signal Interpreter Hacking Suite > --- WEAPON (3) ------- Heavy Particle Cannon > --- INVENTORY (5) ---- YOLO Cannon Peak State ------------ > --- POWER ------------ Light Deuterium Engine Nuclear Core > --- PROPULSION ------- Armored Treads Armored Treads Armored Treads > --- UTILITY ---------- Backup Plating I Hacking Suite > --- WEAPON ----------- YOLO Cannon Flak Cannon > --- INVENTORY -------- Advanced Assault Cannon Advanced Assault Cannon Missile Launcher [Rating: 43] Favorites ----------- Power Ion Engine Engine Ion Engine Power Core Nuclear Core Propulsion Aluminum Leg Treads Armored Treads Leg Aluminum Leg Wheel Compact Wheel Hover Unit Aerolev Unit Flight Unit Improved VTOL Module Utility Hacking Suite Device Improved Heat Sink Storage Large Storage Unit Processor Improved Signal Interpreter Hackware Hacking Suite Protection Backup Plating I Weapon YOLO Cannon Energy Cannon YOLO Cannon Ballistic Gun Assault Rifle Ballistic Cannon Flak Cannon Launcher Grenade Launcher Special Weapon Plasma Flamer Build | -11 -10 -10 -10 -9 -8 -8 ------- Run | Yrd Mat Min Exi Min Mat Sto Slots Evolved 4 | . . . . . 4 . Power 1 | . . . . . 1 . Propulsion 1 | . . . . . 1 . Utility 1 | . . . . . 1 . Weapon 1 | . . . . . 1 . Parts Attached 33 | 5 2 . 2 3 13 8 Power 5 | 1 . . . . 3 1 Engine 3 | 1 . . . . 1 1 Core 2 | . . . . . 2 . Reactor . | . . . . . . . Propulsion 10 | 2 . . . 2 3 3 Treads 3 | . . . . . 3 . Leg 2 | 2 . . . . . . Wheel 2 | . . . . 2 . . Hover 2 | . . . . . . 2 Flight 1 | . . . . . . 1 Utility 4 | . 1 . 1 . 1 1 Device 1 | . . . . . . 1 Storage 1 | . . . 1 . . . Processor 1 | . . . . . 1 . Hackware 1 | . 1 . . . . . Protection . | . . . . . . . Artifact . | . . . . . . . Weapon 14 | 2 1 . 1 1 6 3 Energy Gun . | . . . . . . . Energy Cannon 2 | . . . 1 . . 1 Ballistic Gun 4 | 2 . . . . 1 1 Ballistic Cannon 3 | . . . . . 3 . Launcher 4 | . 1 . . . 2 1 Special Weapon 1 | . . . . 1 . . Impact Weapon . | . . . . . . . Slashing Weapon . | . . . . . . . Piercing Weapon . | . . . . . . . Special Melee Weapon . | . . . . . . . Unidentified Prototypes 4 | . . . . . . 4 Parts Lost 19 | . . . . 4 10 5 Power 3 | . . . . 1 2 . Propulsion 6 | . . . . 2 4 . Utility 1 | . . . . . 1 . Weapon 9 | . . . . 1 3 5 Highest Loss Streak 5 | . . . . 2 5 2 To Critical Strikes . | . . . . . . . Average Backups 1 | 1 . 1 1 2 1 1 Power . | . . . . . . . Propulsion . | . . . . . . . Utility . | . . . . . . . Weapon 1 | . . 1 1 2 1 1 Tool/Special . | . . . . . . . Unused Backups . | . . . . . . . Power . | . . . . . . . Propulsion . | . . . . . . . Utility . | . . . . . . . Weapon . | . . . . . . . Tool/Special . | . . . . . . . Average Slot Usage (%) 64 | . 75 85 82 53 56 50 Engine 7 | . 14 14 14 9 1 2 Core 1 | . . . . . 6 . Treads 5 | . . . . . 18 . Leg 12 | . 28 28 28 10 . . Wheel 1 | . . . . 5 . . Processor 1 | . . . . . 1 9 Hackware 11 | . 4 14 14 14 9 9 Energy Cannon 5 | . . . 2 11 4 4 Ballistic Gun 5 | . 15 14 11 . . 5 Ballistic Cannon 3 | . . . . . 9 3 Launcher 6 | . 12 13 11 . 3 6 Peak Build Rating 43 | 5 8 8 27 26 43 33 Average Rating 19 | 3 6 8 11 22 28 20 On Entrance 12 | . 5 8 8 26 25 15 Naked Turns . | . . . . . . . Heaviest Build 37 | 9 10 10 23 23 37 24 Greatest Support 60 | 20 20 20 20 26 60 16 Greatest Overweight (x) 7 | . . . 1 7 3 5 Average Overweight (x) . | . . . . 1 . 2 Largest Inventory Capacity 15 | 5 5 5 15 5 5 5 Average Capacity 5 | 5 5 5 5 5 5 5 Most Carried 5 | 5 2 1 4 5 5 4 Average Carried 1 | 1 . 1 1 2 1 2 Final Capacity 5 | 5 5 5 5 5 5 5 Final Carried 3 | . 1 1 2 3 3 2 Class Distribution -------------------- 77% | Mutant 22% | Skirmisher Dominant Class ---------------- Mutant | -10/Materials Mutant | -10/Mines Mutant | -10/Exiles Mutant | -9/Mines Skirmisher | -8/Materials Mutant | -8/Storage Resources | -11 -10 -10 -10 -9 -8 -8 ----------- Run | Yrd Mat Min Exi Min Mat Sto Matter Collected 1902 | 239 213 11 . 141 886 412 Remotely . | . . . . . . . Salvage Created 3637 | . 282 27 . 302 2031 995 Parts 240 | . 25 7 . 32 123 53 Haulers Intercepted 8 | . 1 . . . 4 3 Recyclers Shooed 1 | . . . . . 1 . Parts Field Recycled . | . . . . . . . Retrieved Matter . | . . . . . . . Parts Self-Destructed . | . . . . . . . Prevented . | . . . . . . . Kills | -11 -10 -10 -10 -9 -8 -8 ------- Run | Yrd Mat Min Exi Min Mat Sto Combat Hostiles Destroyed 91 | . 8 3 . 10 52 18 Guns 5 | . 2 . . 1 . 2 Cannons 34 | . . . . 5 21 8 AOE 48 | . 6 3 . 4 28 7 Classes Destroyed 17 | . 6 1 . 2 8 . Worker 16 | . . 1 . 3 10 2 Builder 9 | . . . . 1 7 1 Tunneler 4 | . . . . 2 2 . Hauler 8 | . 1 . . . 4 3 Recycler 10 | . 1 . . 3 3 3 Carrier 1 | . . . . . 1 . Mechanic 2 | . . . . . 2 . Operator 5 | . 2 . . . 3 . Watcher 6 | . 1 . . . 4 1 Swarmer 31 | . 3 3 . 10 10 5 Grunt 36 | . 5 . . . 24 7 Brawler 4 | . . . . . 4 . Duelist 3 | . . . . . 3 . Protector 2 | . . . . . 2 . Sentry 12 | . . . . . 7 5 Hunter 2 | . . . . . 1 1 Heavy 1 | . . . . . 1 . Best Kill Streak 20 | . 8 4 . 5 20 9 Combat Bots Only 13 | . 6 3 . 3 13 5 Max Kills in Single Turn 4 | . 4 2 . 4 4 4 Gunslinging . | . . . . . . . Exploded 4 | . 4 2 . 2 3 2 Melee . | . . . . . . . Uniques/NPCs Destroyed . | . . . . . . . Combat | -11 -10 -10 -10 -9 -8 -8 -------- Run | Yrd Mat Min Exi Min Mat Sto Hostile Shots Fired 323 | . 12 4 . 47 159 101 Missed 92 | . 3 1 . 12 44 32 Hits 231 | . 9 3 . 35 115 69 Melee 8 | . . . . . 8 . Projectile 223 | . 9 3 . 35 107 69 Critical Strikes 8 | . . . . . 5 3 Damage Taken 3449 | . 198 24 . 326 1906 995 Core 644 | . 41 . . 47 248 308 Absorbed by Shields . | . . . . . . . Core Remaining (%) 82 | 100 . . . 64 . . Volleys Fired 219 | . 14 7 . 30 98 70 Largest 3 | . 2 2 . 1 3 3 Hottest 140 | . 50 50 . 100 140 125 Shots Fired 306 | . 28 12 . 30 138 98 Gun 54 | . 14 9 . 2 5 24 Cannon 174 | . . . . 12 111 51 Launcher 62 | . 14 3 . . 22 23 Special 16 | . . . . 16 . . Kinetic 138 | . 14 9 . 2 74 39 Thermal 106 | . . . . 28 42 36 Explosive 51 | . 14 3 . . 22 12 Electromagnetic 11 | . . . . . . 11 Robot Hit Streak 9 | . 4 3 . 3 7 9 Robot Miss Streak 8 | . 1 1 . 2 8 3 Penetration Max . | . . . . . . . Secondary Targets . | . . . . . . . Shots Hit Robots 151 | . 6 3 . 10 84 48 Core Hits 193 | . 20 5 . 17 110 41 Critical Kills 6 | . . . . . 5 1 Critical Parts Destroyed . | . . . . . . . Critical Strikes 8 | . . . . 1 6 1 Burn 1 | . . . . 1 . . Meltdown 6 | . . . . . 5 1 Blast 1 | . . . . . 1 . Melee Attacks . | . . . . . . . Impact . | . . . . . . . Slashing . | . . . . . . . Piercing . | . . . . . . . Sneak Attacks . | . . . . . . . Combat Hostiles . | . . . . . . . Follow-up Attacks . | . . . . . . . Damage Inflicted 14711 | . 689 276 . 1287 10028 2431 Guns 336 | . 38 38 . 13 38 209 Cannons 5918 | . . . . 430 4485 1003 Explosions 8378 | . 651 238 . 765 5505 1219 Melee . | . . . . . . . Ramming . | . . . . . . . Kinetic 1681 | . 38 38 . 13 1169 423 Thermal 9904 | . . . . 1274 7620 1010 Explosive 2638 | . 651 238 . . 1203 546 Electromagnetic 488 | . . . . . 36 452 Impact . | . . . . . . . Slashing . | . . . . . . . Piercing . | . . . . . . . Highest Corruption 5 | . . . . . 4 5 Average Corruption 4 | . . . . . 3 4 Corruption Purged . | . . . . . . . Corruption Blocked . | . . . . . . . Effects 34 | . . . . . 17 17 Message Errors 7 | . . . . . 5 2 Matter Fused 12 | . . . . . 5 7 Heat Flow Errors 5 | . . . . . 2 3 Energy Discharges 1 | . . . . . 1 . Data Loss (minor) 5 | . . . . . 4 1 Alerts 1 | . . . . . . 1 Weapon Failures 3 | . . . . . . 3 Overload Shots . | . . . . . . . Overflow Damage 1192 | . 4 37 . 135 936 80 Projectiles 718 | . . . . 59 592 67 Explosions 474 | . 4 37 . 76 344 13 Melee . | . . . . . . . Knockbacks 19 | . . . . . 18 1 Impact . | . . . . . . . Kinetic 19 | . . . . . 18 1 Secondary . | . . . . . . . Self-Inflicted Damage 464 | . 114 . . 58 217 75 Shots 14 | . 5 . . 1 6 2 Rammed . | . . . . . . . Targets Rammed . | . . . . . . . Kicked . | . . . . . . . Crushed . | . . . . . . . Highest Temperature 329 | . 10 . . 260 329 257 Average Temperature 64 | . 5 . . 71 69 48 Received Heat Transfer 840 | . 30 . . . 486 324 Effects 2 | . . . . 1 1 . Energy Bleed 1 | . . . . . 1 . Interference 1 | . . . . 1 . . Siege Activations . | . . . . . . . Martial Activations . | . . . . . . . Shielding Activations . | . . . . . . . Robots Disrupted . | . . . . . . . Combat Hostiles . | . . . . . . . Robots Corrupted . | . . . . . . . Combat Hostiles . | . . . . . . . Parts Fried 3 | . . . . . . 3 Impact Corruptions . | . . . . . . . Robots Melted 7 | . . . . . 6 1 Combat Hostiles 4 | . . . . . 3 1 Parts Melted 19 | . . . . 5 13 1 Heat Transferred 10117 | . . . . 1760 7055 1302 Parts Sabotaged . | . . . . . . . Parts Stolen . | . . . . . . . Parts Stripped . | . . . . . . . Power Chain Reactions 6 | . . . . . 1 5 Alert | -11 -10 -10 -10 -9 -8 -8 ------- Run | Yrd Mat Min Exi Min Mat Sto Maximum Alert Level 5 | . 1 . . . 5 3 Low Security (%) 51 | 100 76 100 . 100 8 . Level 1 3 | . 23 . . . 5 . Level 2 2 | . . . . . 3 11 Level 3 13 | . . . . . 7 88 Level 4 21 | . . . . . 55 . Level 5 7 | . . . . . 20 . High Security . | . . . . . . . Max Security . | . . . . . . . Sterilizations 1 | . . . . . 1 . Peak Influence 1685 | . 218 131 . 145 1685 1068 Initial 686 | . . 76 . . 26 686 Average 598 | . 152 58 . 54 1202 847 Influence Increases 3886 | . 358 95 . 450 2289 694 Destroy 0b10 Robot/C 1800 | . 160 60 . 200 1020 360 Destroy 0b10 Robot/NC 310 | . 25 5 . 45 185 50 Destroy Leader 418 | . 34 10 . 30 246 98 Successful Hack 5 | . . . . . 5 . Disable Machine 345 | . 60 . . 30 180 75 Anti-Garrison Action 150 | . . . . . 150 . Destroy Structure 783 | . 79 20 . 115 458 111 Lose Combat Pursuer 75 | . . . . 30 45 . Influence Decreases 2818 | . 160 293 . 383 730 1252 Entered New Map 1103 | . . 122 . . 41 940 Time Decay 1525 | . 160 171 . 343 589 262 Lost Part 190 | . . . . 40 100 50 Squads Dispatched 15 | . 1 . . . 10 4 Investigation 1 | . . . . . . 1 Extermination . | . . . . . . . Reinforcement 8 | . 1 . . . 4 3 Assault 4 | . . . . . 4 . Garrison 2 | . . . . . 2 . Intercept . | . . . . . . . Searches Triggered . | . . . . . . . Construction Impeded 4 | . . . . . 2 2 Haulers Reinforced . | . . . . . . . Active Scanning Responses . | . . . . . . . Cargo Convoy Interrupts . | . . . . . . . Stealth | -11 -10 -10 -10 -9 -8 -8 --------- Run | Yrd Mat Min Exi Min Mat Sto Distress Signals 5 | . 1 . . . 2 2 Communications Jammed . | . . . . . . . Distress Signals . | . . . . . . . Times Spotted 122 | . 9 2 . 15 68 28 Peak Tracking Total 7 | . 4 2 . 4 7 5 Tactical Retreats 3 | . . . . 1 2 . Traps | -11 -10 -10 -10 -9 -8 -8 ------- Run | Yrd Mat Min Exi Min Mat Sto Traps Triggered 1 | . . . . . . 1 Indirectly 1 | . . . . . . 1 Trap Hack Attempts . | . . . . . . . Triggered . | . . . . . . . Disarmed . | . . . . . . . Reprogrammed . | . . . . . . . Reused . | . . . . . . . Traps Extracted . | . . . . . . . Installed . | . . . . . . . Triggered . | . . . . . . . Machines | -11 -10 -10 -10 -9 -8 -8 ---------- Run | Yrd Mat Min Exi Min Mat Sto Machines Disabled 24 | . 4 . . 2 13 5 Max in Single Turn 2 | . 1 . . 1 2 1 Garrison Access 1 | . . . . . 1 . Machines Repaired . | . . . . . . . Machines Dismantled . | . . . . . . . Machines Sabotaged . | . . . . . . . Overloaded Fab Kills . | . . . . . . . Hacking | -11 -10 -10 -10 -9 -8 -8 --------- Run | Yrd Mat Min Exi Min Mat Sto Machines Accessed 7 | . . . 4 . 2 1 Terminals 1 | . . . . . . 1 Fabricators . | . . . . . . . Repair Stations 1 | . . . . . 1 . Recycling Units . | . . . . . . . Scanalyzers 1 | . . . . . 1 . Garrison Access . | . . . . . . . Total Hacks 48 | . . . 41 . 4 3 Successful 46 | . . . 41 . 4 1 Failed 2 | . . . . . . 2 Catastrophic . | . . . . . . . Database Lockouts . | . . . . . . . Manual 1 | . . . 1 . . . Terminals 3 | . . . . . . 3 Fabricators . | . . . . . . . Repair Stations 1 | . . . . . 1 . Recycling Units . | . . . . . . . Scanalyzers 3 | . . . . . 3 . Garrison Access . | . . . . . . . Terminal Hacks 42 | . . . 41 . . 1 Record 41 | . . . 40 . . 1 Proto ID Catalog 1 | . . . 1 . . . Fabricator Hacks . | . . . . . . . Repair Station Hacks 1 | . . . . . 1 . Refit 1 | . . . . . 1 . Recycling Unit Hacks . | . . . . . . . Scanalyzer 3 | . . . . . 3 . Insert Component 3 | . . . . . 3 . Garrison Access Hacks . | . . . . . . . Unauthorized Hacks . | . . . . . . . Terminals . | . . . . . . . Fabricators . | . . . . . . . Repair Stations . | . . . . . . . Recycling Units . | . . . . . . . Scanalyzers . | . . . . . . . Garrison Access . | . . . . . . . Data Cores Recovered 2 | . 1 . . . 1 . Used . | . . . . . . . Hacking Detections 2 | . . . . . 1 1 Full Trace Events 1 | . . . . . . 1 Feedback Events . | . . . . . . . Feedback Blocked . | . . . . . . . Robot Schematics Acquired . | . . . . . . . Robots Built . | . . . . . . . Authchips . | . . . . . . . Time . | . . . . . . . Total Robot Build Rating . | . . . . . . . Part Schematics Acquired . | . . . . . . . Parts Built . | . . . . . . . Authchips . | . . . . . . . Time . | . . . . . . . Total Part Build Rating . | . . . . . . . Parts Repaired . | . . . . . . . Time . | . . . . . . . Parts Recycled . | . . . . . . . Recycled Matter . | . . . . . . . Retrieved Matter . | . . . . . . . Retrieved Components . | . . . . . . . Parts Scanalyzed . | . . . . . . . Part Schematics Acquired . | . . . . . . . Parts Damaged . | . . . . . . . Bothacking | -11 -10 -10 -10 -9 -8 -8 ------------ Run | Yrd Mat Min Exi Min Mat Sto Used RIF Installer . | . . . . . . . Robots Hacked . | . . . . . . . Non-combat . | . . . . . . . Combat . | . . . . . . . Robot Hacks Applied . | . . . . . . . Relay Couplers Released 2 | . . . . . 2 . Machine Destruction 2 | . . . . . 2 . Fabnet Peak Effective % . | . . . . . . . Robots Rewired . | . . . . . . . Allies Hacked . | . . . . . . . Hacks Repelled . | . . . . . . . Allies | -11 -10 -10 -10 -9 -8 -8 -------- Run | Yrd Mat Min Exi Min Mat Sto Total Allies 2 | . . 2 . . . . Largest Group 2 | . . 2 1 . . . Highest-Rated Group 44 | . . 44 31 . . . Highest-Rated Ally 31 | . . 31 31 . . . Total Orders . | . . . . . . . Ally Attacks . | . . . . . . . Total Damage . | . . . . . . . Kills . | . . . . . . . Allies Corrupted . | . . . . . . . Allies Melted . | . . . . . . . Intel | -11 -10 -10 -10 -9 -8 -8 ------- Run | Yrd Mat Min Exi Min Mat Sto Active Infowar (turns) . | . . . . . . . Robot Analysis Total . | . . . . . . . Derelict Logs Recovered 1 | . . . . 1 . . Drone Launches . | . . . . . . . Drone Recoveries . | . . . . . . . Exploration | -11 -10 -10 -10 -9 -8 -8 ------------- Run | Yrd Mat Min Exi Min Mat Sto Turns Passed 6244 | 38 370 385 1456 1582 1846 567 Spaces Moved 3229 | 33 262 298 760 847 812 217 Core 430 | 15 . . . 105 154 156 Treads 603 | . . . . . 603 . Legs 1735 | 18 262 298 760 397 . . Wheels 400 | . . . . 345 55 . Hover 55 | . . . . . . 55 Flight 6 | . . . . . . 6 Fastest Speed 46 | 50 120 120 120 90 80 46 Average Speed 152 | 88 120 120 132 171 174 160 Slowest Speed 400 | 120 120 120 190 400 250 315 Overloaded Moves . | . . . . . . . Propulsion Burnouts . | . . . . . . . Robots Hopped . | . . . . . . . Potential Cave-ins 3 | . . . . 3 . . Cave-ins Triggered . | . . . . . . . Exploration Rate (%) 58 | 3 46 72 93 90 63 39 Regions Visited 6 Branch Regions 4 Pre-discovered Areas 1 | . . . 1 . . . Known Exits Taken 1 | . . . . . 1 . Unknown Exits Taken 5 | 1 1 1 1 1 . . Scrap Searched 3 | . . 1 . 2 . . Spaces Dug 61 | . 10 10 . 41 . . Terrain Destroyed 957 | . 84 26 . 175 541 131 Melee . | . . . . . . . Projectile 35 | . . . . 7 17 11 AOE 922 | . 84 26 . 168 524 120 Terrain Rammed . | . . . . . . . Walls Destroyed . | . . . . . . . Machines Disabled . | . . . . . . . Actions | -11 -10 -10 -10 -9 -8 -8 --------- Run | Yrd Mat Min Exi Min Mat Sto Total 4145 | 42 289 312 1215 914 1031 342 Wait 595 | . 10 6 445 27 75 32 Move 3223 | 32 261 297 759 846 811 217 Hop . | . . . . . . . Pick Up 36 | 5 2 . 3 4 13 9 Fast Attach . | . . . . . . . Attach 44 | 5 1 . 2 5 20 11 Detach 13 | . . . 2 2 8 1 Swap 5 | . 1 2 1 . 1 . Drop 10 | . . . 3 . 5 2 Fire 219 | . 14 7 . 30 98 70 Melee . | . . . . . . . Ram . | . . . . . . . Kick . | . . . . . . . Crush . | . . . . . . . Escape Stasis . | . . . . . . . Rewire . | . . . . . . . Trap . | . . . . . . . Miscellaneous . | . . . . . . . Route ------- -11/Scrapyard -10/Materials (discovered 3 exits: [*Mat] / [*Min x2]) -10/Mines (discovered 3 exits: [*Mat] / *Exi / [*Sub]) -10/Exiles -9/Mines (discovered 2 exits: *Mat x2) -8/Materials (discovered 3 exits: *Fac x2 / *Sto) -8/Storage History --------- Turn | Location | Event 6 | -11/Scrapyard | Discovered new exit (range 16) 39 | -11/Scrapyard | Entered Materials 39 | -10/Materials | Discovered new exit (range 7) 163 | -10/Materials | Discovered new exit (range 14) 205 | -10/Materials | Discovered new exit (range 12) 318 | -10/Materials | Build established: Mutant 409 | -10/Materials | Entered Mines 410 | -10/Mines | Assembled infested the area 427 | -10/Mines | Met a Derelict bent on vengeance 445 | -10/Mines | Met 8R-AWN 541 | -10/Mines | Discovered new exit (range 8) 761 | -10/Mines | Discovered new exit (range 12) 787 | -10/Mines | Discovered new exit (range 5) 794 | -10/Mines | Entered Exiles 794 | -10/Exiles | Accompanied by 1 ally 824 | -10/Exiles | Led the pair of lost Derelicts to a safe place 826 | -10/Exiles | Welcomed by 8R-AWN 848 | -10/Exiles | Met EX-HEX 1080 | -10/Exiles | Met EX-DEC 1178 | -10/Exiles | Visited The Gauntlet 1559 | -10/Exiles | Learned location of Zion (-7) 1581 | -10/Exiles | Met EX-BIN 1861 | -10/Exiles | Aligned with FarCom system 1862 | -10/Exiles | Given EX-Vault access code 1921 | -10/Exiles | Opened EX-Vault 1961 | -10/Exiles | Warned to stay clear of 0b10 Research branches 1998 | -10/Exiles | Found YOLO Cannon 2231 | -10/Exiles | Discovered new exit (range 10) 2250 | -10/Exiles | Left Exiles lab with YOLO Cannon 2250 | -10/Exiles | Entered Mines 2277 | -9/Mines | Discovered new exit (range 12) 2349 | -9/Mines | A weapon hastily lodged in a ceiling crevice suddenly fell to the ground 2531 | -9/Mines | Learned 2 Materials zone layouts 3115 | -9/Mines | Discovered new exit (range 10) 3832 | -9/Mines | Entered Materials 3832 | -8/Materials | Evolved 4 slots: Power x1, Propulsion x1, Utility x1, Weapon x1 3833 | -8/Materials | Identified exit to Storage 3938 | -8/Materials | Lost 3 parts (1n2w) 3943 | -8/Materials | Garrison activated, responded to threat 4084 | -8/Materials | Garrison activated, responded to threat 4174 | -8/Materials | Destroyed 8 combat bots 4213 | -8/Materials | Build established: Skirmisher 4232 | -8/Materials | First assault squad dispatched 4317 | -8/Materials | Destroyed 13 combat bots 4585 | -8/Materials | Discovered new exit (range 14) 5166 | -8/Materials | Lost 5 parts (2p1n1u1w) 5305 | -8/Materials | Sterilization system engaged 5305 | -8/Materials | Non-combat units ordered to evacuate 5312 | -8/Materials | Discovered new exit (range 15) 5376 | -8/Materials | Identified exit to Factory 5405 | -8/Materials | Combat units ordered to evacuate 5593 | -8/Materials | Build established: Mutant 5605 | -8/Materials | Ambient heat levels rising (+10) 5678 | -8/Materials | Entered Storage 5742 | -8/Storage | Core integrity fell below 50% 5912 | -8/Storage | Core integrity fell below 20% 6245 | -8/Storage | Destroyed by S-10 Pest with Light Assault Rifle Last Messages --------------- Adv. EMP Blaster destroyed. Critical hit (Burn: +37). K-01 Serf collects debris. Lgt. Treads melted. Y-45 Defender destroyed. K-01 Serf collects debris. Penetrated by Slug. Destroyed Lgt. Ion Engine. K-01 Serf collects debris. Slug penetrates Wall. System corrupted: Heat flow error (+131). Penetrated by Slug. K-01 Serf collects debris. H-55 Commando destroyed. K-01 Serf collects debris. Acquired 52 matter. S-10 Pest destroyed. Y-45 Defender destroyed. System corrupted: Hvy. Particle Cannon failed to cycle. Map ----- +----------------------------------------------------+ | | | | | | | | | | | | | | | | | | | | | | | | | | | ?????????????????????????????????????????????????? | | ?????????????????????????????????????????????????? | | ?????????????????????????????????????????????????? | | ?????????????????????????????????????????????????? | | ?????????????????????????????????????????????????? | | ??????????????????#+?????????????????????????????? | | ??????????????????# ????#####???????????????????? | | ??????????????????# T ?###"T"####????????????????? | | ?????????????????## # #????????????????? | | ?????????????????# [ # #???????##+##????? | | ??????????????????# =s*; """#??????? ?????? | | ??????????????????# %[%= """#???????# #?????? | | ??????????????????# =[=;%@ """#???????# #?????? | | ??????????????????# # """#???????# #?????? | | ??????????????????#??? ; """######### #?????? | | ???????????????????###/# + #?????? | | ???????????????# ; # #?????? | | ???????????????####### ##### ###; #?????? | | ????????????????????## ???# = = [ % ##????? | | ????????????????????# ### [ = #????? | | ????????????????????# * = !!= ##????? | | ????????????????????# ### = !%! "##???? | | ????????????????????##???# % !!! %=% *[! ? | | ?????????????????????????# % [ % = =%= | | ?????????????????######### "####+# | | ?????????????????# " = ####/####???? | | ?????????????????# # [ ## #???? | | ?????????????????# """""" # [ + #???? | | ???????????????????" [ =" # ="## #???? | | ???????????????????"[ [ / =##? #???? | | ???????????????????"""""" " !### #???? | | ??????????????????? # # # #???? | | ?????????????????# # #####+##### | | ?????????????????# # + | | ?????????????????#######/## ######## #########?# | | ???????????????????????# ?# #???# # # #??????#" | | ???????????????????????# ?# #???# ##+#######??#" | +----------------------------------------------------+ Best States ------------- Heat Dissipation 45 Energy Generation 23 Energy Capacity 300 Matter Stores 300 Matter Capacity 300 Sight Range 16 Terrain Scan Density 10 Armor Coverage 80 Evasion (%) 55 Recoil Reduction 3 Offensive Hacking 10 Item Schematics ----------------- None Robot Schematics ------------------ None Fabricated ------------ Nothing Repaired ---------- Nothing Alien Tech Used ----------------- None Achievements -------------- Preemptive Strike Challenges ------------ None Game ------ Seed PropulsionReactiveChainsword Manual? 0 Play Time 00:43:08 Cumulative 53.8 hours Start 2025.07.16 @ 15:55:54 End 2025.07.16 @ 17:34:18 Sessions 1 Manual Loads 0 Difficulty Rogue Special Mode None Game No. 238 Rogue 238 Adventurer 0 Explorer 0 Win Type - Total 0 Types 0/0/0/0/0/0/0/0/0/0 Lore% 37 Gallery% 29 Achievement% 24 Wizard Run 0 Options --------- Layout 2 ASCII 0 Keyboard 0 Movement Mouse Keybinds 0 Fullscreen 1 Font 24/Smallcaps Map View 50x44 Zoom Use 0% Tactical HUD 0 Map Filters NONE Filters NONE Steam 1 RUN: fae6e049-5ecb-460c-a53a-77d01db08723